[Event "Titled Tuesday Blitz November 22 Early 2022"]
[White "Samunenkov, Ihor"]
[Black "Balabayeva, Xeniya"]
[WhiteFideId "14187086"]
[BlackFideId "13719688"]
[WhiteElo "2441"]
[BlackElo "2041"]
[Result "0-1"]
[Round "05"]
[TimeControl "180+1"]
[Date "2022.11.23"]
[WhiteClock "0:00:06"]
[BlackClock "0:00:06"]

1. d4 {[%clk 0:03:00]}  d5 {[%clk 0:02:48]} 2. c4 {[%clk 0:02:59]}  e6 {[%clk 0:02:46]} 3. Nc3 {[%clk 0:02:59]}  Nf6 {[%clk 0:02:46]} 4. cxd5 {[%clk 0:02:59]}  exd5 {[%clk 0:02:45]} 5. Bg5 {[%clk 0:02:58]}  Be7 {[%clk 0:02:45]} 6. e3 {[%clk 0:02:59]}  c6 {[%clk 0:02:45]} 7. Bd3 {[%clk 0:02:58]}  Nbd7 {[%clk 0:02:44]} 8. Nge2 {[%clk 0:02:56]}  Nh5 {[%clk 0:02:43]} 9. Bxe7 {[%clk 0:02:56]}  Qxe7 {[%clk 0:02:44]} 10. Qc2 {[%clk 0:02:57]}  Nb6 {[%clk 0:02:43]} 11. O-O {[%clk 0:02:56]}  g6 {[%clk 0:02:35]} 12. Rae1 {[%clk 0:02:55]}  O-O {[%clk 0:02:34]} 13. Qc1 {[%clk 0:02:54]}  Be6 {[%clk 0:02:26]} 14. f3 {[%clk 0:02:27]}  Rae8 {[%clk 0:01:31]} 15. g4 {[%clk 0:02:12]}  Ng7 {[%clk 0:01:26]} 16. Nf4 {[%clk 0:01:57]}  f5 {[%clk 0:01:22]} 17. h3 {[%clk 0:01:53]}  Qg5 {[%clk 0:00:55]} 18. Kh2 {[%clk 0:01:10]}  Qh4 {[%clk 0:00:40]} 19. Kg2 {[%clk 0:00:43]}  Qg5 {[%clk 0:00:24]} 20. Rh1 {[%clk 0:00:11]}  fxg4 {[%clk 0:00:24]} 21. hxg4 {[%clk 0:00:12]}  Bxg4 {[%clk 0:00:12]} 22. fxg4 {[%clk 0:00:12]}  Qxg4+ {[%clk 0:00:12]} 23. Kf2 {[%clk 0:00:13]}  Ne6 {[%clk 0:00:12]} 24. Ne2 {[%clk 0:00:07]}  Ng5 {[%clk 0:00:05]} 25. Reg1 {[%clk 0:00:04]}  Qf3+ {[%clk 0:00:05]} 26. Ke1 {[%clk 0:00:05]}  Rxe3 {[%clk 0:00:05]} 27. Rxg5 {[%clk 0:00:04]}  Qxf4 {[%clk 0:00:05]} 28. Rhg1 {[%clk 0:00:02]}  Rfe8 {[%clk 0:00:05]} 29. Kd2 {[%clk 0:00:02]}  Rxe2+ {[%clk 0:00:05]} 30. Kc3 {[%clk 0:00:03]}  Qxc1+ {[%clk 0:00:04]} 31. Rxc1 {[%clk 0:00:04]}  R2e6 {[%clk 0:00:04]} 32. Rh1 {[%clk 0:00:03]}  Kg7 {[%clk 0:00:04]} 33. Rg3 {[%clk 0:00:04]}  h6 {[%clk 0:00:05]} 34. Rhg1 {[%clk 0:00:04]}  g5 {[%clk 0:00:05]} 35. Rf1 {[%clk 0:00:04]}  Nd7 {[%clk 0:00:05]} 36. Rgf3 {[%clk 0:00:05]}  Rf6 {[%clk 0:00:05]} 37. Bf5 {[%clk 0:00:05]}  Ref8 {[%clk 0:00:05]} 38. Kd3 {[%clk 0:00:03]}  Nb6 {[%clk 0:00:04]} 39. b3 {[%clk 0:00:04]}  R8f7 {[%clk 0:00:05]} 40. Ke3 {[%clk 0:00:04]}  Na8 {[%clk 0:00:04]} 41. Kd3 {[%clk 0:00:02]}  Nc7 {[%clk 0:00:04]} 42. Ke3 {[%clk 0:00:03]}  Nb5 {[%clk 0:00:04]} 43. Kd3 {[%clk 0:00:03]}  Nd6 {[%clk 0:00:05]} 44. Bg4 {[%clk 0:00:03]}  Rxf3+ {[%clk 0:00:05]} 45. Bxf3 {[%clk 0:00:04]}  g4 {[%clk 0:00:05]} 46. Be2 {[%clk 0:00:04]}  Rxf1 {[%clk 0:00:05]} 47. Bxf1 {[%clk 0:00:05]}  Kf6 {[%clk 0:00:05]} 48. Ke3 {[%clk 0:00:06]}  Kf5 {[%clk 0:00:06]} 49. Bd3+ {[%clk 0:00:06]}  Kg5 {[%clk 0:00:06]} 0-1


[Site "https://www.chess.com"]

[Event "Titled Tuesday Blitz November 22 Early 2022"]
[White "Sanchez, Robert"]
[Black "Kouskoutis, Georgios-Alexandros"]
[WhiteFideId "2034360"]
[BlackFideId "4234049"]
[WhiteElo "2296"]
[BlackElo "2187"]
[Result "0-1"]
[Round "05"]
[TimeControl "180+1"]
[Date "2022.11.23"]
[WhiteClock "0:00:22"]
[BlackClock "0:00:09"]

1. e4 {[%clk 0:02:56]}  c5 {[%clk 0:03:00]} 2. Nf3 {[%clk 0:02:57]}  d6 {[%clk 0:03:00]} 3. d4 {[%clk 0:02:57]}  cxd4 {[%clk 0:03:01]} 4. Nxd4 {[%clk 0:02:58]}  Nf6 {[%clk 0:03:01]} 5. Nc3 {[%clk 0:02:58]}  g6 {[%clk 0:03:02]} 6. Be3 {[%clk 0:02:59]}  Bg7 {[%clk 0:02:56]} 7. f3 {[%clk 0:02:59]}  a6 {[%clk 0:02:57]} 8. Qd2 {[%clk 0:02:58]}  h5 {[%clk 0:02:57]} 9. O-O-O {[%clk 0:02:57]}  b5 {[%clk 0:02:58]} 10. Kb1 {[%clk 0:02:57]}  Bb7 {[%clk 0:02:58]} 11. e5 {[%clk 0:02:32]}  dxe5 {[%clk 0:02:35]} 12. Ne6 {[%clk 0:02:31]}  Qxd2 {[%clk 0:02:35]} 13. Nxg7+ {[%clk 0:02:32]}  Kf8 {[%clk 0:02:35]} 14. Ne6+ {[%clk 0:02:28]}  fxe6 {[%clk 0:02:36]} 15. Rxd2 {[%clk 0:02:27]}  Nc6 {[%clk 0:01:57]} 16. Ne4 {[%clk 0:02:18]}  Nxe4 {[%clk 0:01:37]} 17. fxe4 {[%clk 0:02:18]}  Rd8 {[%clk 0:01:37]} 18. Rxd8+ {[%clk 0:02:13]}  Nxd8 {[%clk 0:01:38]} 19. Bd3 {[%clk 0:02:13]}  Nf7 {[%clk 0:01:35]} 20. Rf1 {[%clk 0:02:01]}  Kg7 {[%clk 0:01:35]} 21. Bc5 {[%clk 0:01:56]}  Nd6 {[%clk 0:01:33]} 22. a3 {[%clk 0:01:31]}  Rf8 {[%clk 0:01:21]} 23. Re1 {[%clk 0:01:26]}  Rf4 {[%clk 0:01:12]} 24. g3 {[%clk 0:01:23]}  Rf7 {[%clk 0:01:05]} 25. Ka2 {[%clk 0:01:18]}  h4 {[%clk 0:00:58]} 26. gxh4 {[%clk 0:01:09]}  Rf4 {[%clk 0:00:58]} 27. Kb3 {[%clk 0:00:58]}  Bxe4 {[%clk 0:00:42]} 28. Bxd6 {[%clk 0:00:56]}  Bd5+ {[%clk 0:00:42]} 29. Kc3 {[%clk 0:00:47]}  exd6 {[%clk 0:00:41]} 30. b3 {[%clk 0:00:42]}  Rxh4 {[%clk 0:00:37]} 31. Re2 {[%clk 0:00:42]}  e4 {[%clk 0:00:34]} 32. Bxb5 {[%clk 0:00:38]}  axb5 {[%clk 0:00:33]} 33. Kb4 {[%clk 0:00:38]}  Bc6 {[%clk 0:00:25]} 34. c4 {[%clk 0:00:39]}  bxc4 {[%clk 0:00:25]} 35. bxc4 {[%clk 0:00:39]}  d5 {[%clk 0:00:20]} 36. Kc5 {[%clk 0:00:36]}  Ba8 {[%clk 0:00:18]} 37. Rb2 {[%clk 0:00:30]}  dxc4 {[%clk 0:00:15]} 38. Kxc4 {[%clk 0:00:27]}  e3+ {[%clk 0:00:15]} 39. Kd3 {[%clk 0:00:28]}  Ra4 {[%clk 0:00:15]} 40. Rb3 {[%clk 0:00:24]}  Bd5 {[%clk 0:00:13]} 41. Rc3 {[%clk 0:00:24]}  Rc4 {[%clk 0:00:08]} 42. Rxc4 {[%clk 0:00:20]}  Bxc4+ {[%clk 0:00:09]} 43. Kxe3 {[%clk 0:00:21]}  e5 {[%clk 0:00:09]} 44. Ke4 {[%clk 0:00:21]}  Kf6 {[%clk 0:00:09]} 45. h4 {[%clk 0:00:22]}  Ke6 {[%clk 0:00:10]} 46. a4 {[%clk 0:00:22]}  Ba6 {[%clk 0:00:08]} 47. a5 {[%clk 0:00:22]}  Bb5 {[%clk 0:00:09]} 48. Ke3 {[%clk 0:00:22]}  Kd5 {[%clk 0:00:09]} 0-1


[Site "https://www.chess.com"]

[Event "Titled Tuesday Blitz November 22 Early 2022"]
[White "Shaik Sumer Arsh"]
[Black "Sargissyan, Sargis"]
[WhiteFideId "45020000"]
[BlackFideId "13303210"]
[WhiteElo "2190"]
[BlackElo "2109"]
[Result "1-0"]
[Round "05"]
[TimeControl "180+1"]
[Date "2022.11.23"]
[WhiteClock "0:00:17"]
[BlackClock "0:00:01"]

1. d4 {[%clk 0:02:59]}  Nf6 {[%clk 0:01:43]} 2. c4 {[%clk 0:02:52]}  g6 {[%clk 0:01:43]} 3. Nc3 {[%clk 0:02:51]}  Bg7 {[%clk 0:01:44]} 4. e4 {[%clk 0:02:51]}  d6 {[%clk 0:01:44]} 5. Be2 {[%clk 0:02:50]}  O-O {[%clk 0:01:45]} 6. Be3 {[%clk 0:02:50]}  Na6 {[%clk 0:01:40]} 7. Nf3 {[%clk 0:02:49]}  e5 {[%clk 0:01:38]} 8. O-O {[%clk 0:02:49]}  Ng4 {[%clk 0:01:29]} 9. Bg5 {[%clk 0:02:46]}  f6 {[%clk 0:01:29]} 10. Bc1 {[%clk 0:02:40]}  h5 {[%clk 0:01:24]} 11. h3 {[%clk 0:02:29]}  Nh6 {[%clk 0:01:23]} 12. Be3 {[%clk 0:01:51]}  Nf7 {[%clk 0:01:03]} 13. Qd2 {[%clk 0:01:45]}  Kh7 {[%clk 0:00:59]} 14. Rad1 {[%clk 0:01:38]}  Be6 {[%clk 0:00:38]} 15. c5 {[%clk 0:01:14]}  dxc5 {[%clk 0:00:37]} 16. d5 {[%clk 0:01:13]}  Bd7 {[%clk 0:00:37]} 17. Bxa6 {[%clk 0:01:10]}  bxa6 {[%clk 0:00:38]} 18. Bxc5 {[%clk 0:01:11]}  Nd6 {[%clk 0:00:38]} 19. Rfe1 {[%clk 0:01:06]}  Bh6 {[%clk 0:00:38]} 20. Qd3 {[%clk 0:01:04]}  Bb5 {[%clk 0:00:32]} 21. Nxb5 {[%clk 0:01:02]}  axb5 {[%clk 0:00:31]} 22. Bxd6 {[%clk 0:00:55]}  cxd6 {[%clk 0:00:30]} 23. Qxb5 {[%clk 0:00:55]}  Rb8 {[%clk 0:00:29]} 24. Qe2 {[%clk 0:00:55]}  Qb6 {[%clk 0:00:23]} 25. b3 {[%clk 0:00:53]}  Rfc8 {[%clk 0:00:24]} 26. Nd2 {[%clk 0:00:52]}  Bxd2 {[%clk 0:00:17]} 27. Rxd2 {[%clk 0:00:44]}  Rc3 {[%clk 0:00:17]} 28. Rc2 {[%clk 0:00:40]}  Rbc8 {[%clk 0:00:17]} 29. Rec1 {[%clk 0:00:39]}  Qd4 {[%clk 0:00:15]} 30. Rxc3 {[%clk 0:00:37]}  Rxc3 {[%clk 0:00:14]} 31. Rxc3 {[%clk 0:00:35]}  Qxc3 {[%clk 0:00:15]} 32. Kh2 {[%clk 0:00:36]}  Qd4 {[%clk 0:00:10]} 33. g3 {[%clk 0:00:27]}  g5 {[%clk 0:00:10]} 34. Kg2 {[%clk 0:00:27]}  Kg7 {[%clk 0:00:09]} 35. Qc4 {[%clk 0:00:23]}  Qb2 {[%clk 0:00:02]} 36. a4 {[%clk 0:00:19]}  Qb1 {[%clk 0:00:02]} 37. Qc7+ {[%clk 0:00:19]}  Kg6 {[%clk 0:00:02]} 38. Qc4 {[%clk 0:00:18]}  a5 {[%clk 0:00:01]} 39. Qc3 {[%clk 0:00:16]}  Kh6 {[%clk 0:00:01]} 40. Qf3 {[%clk 0:00:17]}  Kg7 {[%clk 0:00:01]} 41. Qf5 {[%clk 0:00:17]} 1-0


[Site "https://www.chess.com"]

[Event "Titled Tuesday Blitz November 22 Early 2022"]
[White "Shimanov, Aleksandr"]
[Black "Artemenko, Oleg"]
[WhiteFideId "4198603"]
[BlackFideId "14201798"]
[WhiteElo "2605"]
[BlackElo "2287"]
[Result "1-0"]
[Round "05"]
[TimeControl "180+1"]
[Date "2022.11.22"]
[WhiteClock "0:01:51"]
[BlackClock "0:00:05"]

1. e4 {[%clk 0:02:57]}  e6 {[%clk 0:01:04]} 2. d4 {[%clk 0:02:55]}  d5 {[%clk 0:01:03]} 3. Nc3 {[%clk 0:02:56]}  Nf6 {[%clk 0:01:03]} 4. Bg5 {[%clk 0:02:54]}  Be7 {[%clk 0:01:01]} 5. e5 {[%clk 0:02:46]}  Nfd7 {[%clk 0:01:00]} 6. Bxe7 {[%clk 0:02:45]}  Qxe7 {[%clk 0:01:01]} 7. f4 {[%clk 0:02:45]}  a6 {[%clk 0:01:00]} 8. Nf3 {[%clk 0:02:46]}  c5 {[%clk 0:01:00]} 9. Ne2 {[%clk 0:02:43]}  Nc6 {[%clk 0:00:59]} 10. c3 {[%clk 0:02:43]}  b5 {[%clk 0:00:53]} 11. Ng3 {[%clk 0:02:41]}  Bb7 {[%clk 0:00:51]} 12. a3 {[%clk 0:02:39]}  b4 {[%clk 0:00:46]} 13. axb4 {[%clk 0:02:38]}  cxb4 {[%clk 0:00:45]} 14. Bd3 {[%clk 0:02:39]}  a5 {[%clk 0:00:43]} 15. f5 {[%clk 0:02:37]}  Ba6 {[%clk 0:00:39]} 16. O-O {[%clk 0:02:36]}  Nb6 {[%clk 0:00:36]} 17. Nh5 {[%clk 0:02:35]}  g6 {[%clk 0:00:20]} 18. Nf6+ {[%clk 0:02:31]}  Kd8 {[%clk 0:00:20]} 19. fxe6 {[%clk 0:02:28]}  fxe6 {[%clk 0:00:20]} 20. Ng5 {[%clk 0:02:26]}  Bxd3 {[%clk 0:00:18]} 21. Qxd3 {[%clk 0:02:27]}  Kc7 {[%clk 0:00:16]} 22. Nxd5+ {[%clk 0:02:21]}  Nxd5 {[%clk 0:00:17]} 23. Rf7 {[%clk 0:02:21]}  Qxf7 {[%clk 0:00:16]} 24. Nxf7 {[%clk 0:02:22]}  Rhf8 {[%clk 0:00:16]} 25. Ng5 {[%clk 0:02:21]}  Kd7 {[%clk 0:00:16]} 26. c4 {[%clk 0:02:18]}  Nf4 {[%clk 0:00:16]} 27. Qe4 {[%clk 0:02:18]}  Kc7 {[%clk 0:00:16]} 28. d5 {[%clk 0:02:17]}  exd5 {[%clk 0:00:16]} 29. cxd5 {[%clk 0:02:17]}  Na7 {[%clk 0:00:13]} 30. Rc1+ {[%clk 0:02:16]}  Kb6 {[%clk 0:00:10]} 31. Qe3+ {[%clk 0:02:01]}  Ka6 {[%clk 0:00:10]} 32. Ne4 {[%clk 0:01:57]}  Nxd5 {[%clk 0:00:05]} 33. Nc5+ {[%clk 0:01:58]}  Kb6 {[%clk 0:00:05]} 34. Nd7+ {[%clk 0:01:51]}  Kb7 {[%clk 0:00:05]} 35. Qe4 {[%clk 0:01:51]} 1-0


[Site "https://www.chess.com"]

[Event "Titled Tuesday Blitz November 22 Early 2022"]
[White "Sreyas Payyappat"]
[Black "Agasarov, Benik"]
[WhiteFideId "46674969"]
[BlackFideId "13314823"]
[WhiteElo "2083"]
[BlackElo "2178"]
[Result "0-1"]
[Round "05"]
[TimeControl "180+1"]
[Date "2022.11.23"]
[WhiteClock "0:00:24"]
[BlackClock "0:00:25"]

1. e4 {[%clk 0:03:00]}  c5 {[%clk 0:02:55]} 2. Nf3 {[%clk 0:02:58]}  d6 {[%clk 0:02:50]} 3. d4 {[%clk 0:02:58]}  cxd4 {[%clk 0:02:50]} 4. Nxd4 {[%clk 0:02:59]}  Nf6 {[%clk 0:02:50]} 5. Nc3 {[%clk 0:02:59]}  Bd7 {[%clk 0:02:51]} 6. Bg5 {[%clk 0:02:54]}  e6 {[%clk 0:02:42]} 7. Bxf6 {[%clk 0:02:53]}  Qxf6 {[%clk 0:02:29]} 8. Qd2 {[%clk 0:02:53]}  a6 {[%clk 0:02:27]} 9. O-O-O {[%clk 0:02:53]}  Nc6 {[%clk 0:02:27]} 10. Nxc6 {[%clk 0:02:52]}  Bxc6 {[%clk 0:02:28]} 11. f4 {[%clk 0:02:52]}  Be7 {[%clk 0:02:24]} 12. Bd3 {[%clk 0:02:52]}  b5 {[%clk 0:02:16]} 13. g4 {[%clk 0:02:51]}  g5 {[%clk 0:02:14]} 14. f5 {[%clk 0:02:45]}  Qe5 {[%clk 0:01:55]} 15. Rhf1 {[%clk 0:02:33]}  b4 {[%clk 0:01:47]} 16. Ne2 {[%clk 0:02:30]}  a5 {[%clk 0:01:47]} 17. Ng3 {[%clk 0:02:26]}  Bf6 {[%clk 0:01:45]} 18. c3 {[%clk 0:02:15]}  bxc3 {[%clk 0:01:44]} 19. Qxc3 {[%clk 0:02:07]}  Qxc3+ {[%clk 0:01:42]} 20. bxc3 {[%clk 0:02:08]}  Bxc3 {[%clk 0:01:43]} 21. fxe6 {[%clk 0:02:04]}  fxe6 {[%clk 0:01:44]} 22. Bc4 {[%clk 0:02:03]}  Ke7 {[%clk 0:01:44]} 23. Rd3 {[%clk 0:01:56]}  Be5 {[%clk 0:01:43]} 24. Rdf3 {[%clk 0:01:56]}  Bf4+ {[%clk 0:01:42]} 25. Kc2 {[%clk 0:01:54]}  Rac8 {[%clk 0:01:38]} 26. Kd3 {[%clk 0:01:50]}  Bb7 {[%clk 0:01:11]} 27. Rb1 {[%clk 0:01:44]}  Rc7 {[%clk 0:01:09]} 28. Nh5 {[%clk 0:01:23]}  Bxe4+ {[%clk 0:00:52]} 29. Kxe4 {[%clk 0:01:22]}  Rxc4+ {[%clk 0:00:53]} 30. Kd3 {[%clk 0:01:22]}  Rhc8 {[%clk 0:00:52]} 31. Rb7+ {[%clk 0:01:19]}  Kd8 {[%clk 0:00:51]} 32. Nxf4 {[%clk 0:01:09]}  gxf4 {[%clk 0:00:47]} 33. Ke2 {[%clk 0:01:06]}  Rc2+ {[%clk 0:00:47]} 34. Kf1 {[%clk 0:00:59]}  Rxh2 {[%clk 0:00:44]} 35. Kg1 {[%clk 0:00:57]}  Rxa2 {[%clk 0:00:44]} 36. Rb1 {[%clk 0:00:52]}  e5 {[%clk 0:00:40]} 37. Rh3 {[%clk 0:00:52]}  Rc7 {[%clk 0:00:36]} 38. Rb8+ {[%clk 0:00:51]}  Kd7 {[%clk 0:00:35]} 39. Rxh7+ {[%clk 0:00:50]}  Kc6 {[%clk 0:00:36]} 40. Rh3 {[%clk 0:00:45]}  Kd5 {[%clk 0:00:34]} 41. Rb1 {[%clk 0:00:43]}  Rcc2 {[%clk 0:00:32]} 42. Rd1+ {[%clk 0:00:41]}  Rd2 {[%clk 0:00:32]} 43. Rxd2+ {[%clk 0:00:41]}  Rxd2 {[%clk 0:00:33]} 44. g5 {[%clk 0:00:41]}  Ke6 {[%clk 0:00:32]} 45. Rh6+ {[%clk 0:00:40]}  Kf5 {[%clk 0:00:32]} 46. g6 {[%clk 0:00:40]}  Rd3 {[%clk 0:00:30]} 47. g7 {[%clk 0:00:37]}  Rg3+ {[%clk 0:00:30]} 48. Kf2 {[%clk 0:00:38]}  Rxg7 {[%clk 0:00:29]} 49. Rxd6 {[%clk 0:00:39]}  Ra7 {[%clk 0:00:30]} 50. Rd3 {[%clk 0:00:38]}  a4 {[%clk 0:00:30]} 51. Ra3 {[%clk 0:00:39]}  e4 {[%clk 0:00:31]} 52. Ke2 {[%clk 0:00:39]}  Kg4 {[%clk 0:00:31]} 53. Kf2 {[%clk 0:00:38]}  e3+ {[%clk 0:00:31]} 54. Ke2 {[%clk 0:00:39]}  Kg3 {[%clk 0:00:32]} 55. Kd3 {[%clk 0:00:38]}  Kf3 {[%clk 0:00:32]} 56. Kc2 {[%clk 0:00:34]}  Kf2 {[%clk 0:00:31]} 57. Kd3 {[%clk 0:00:34]}  e2 {[%clk 0:00:31]} 58. Ra2 {[%clk 0:00:35]}  f3 {[%clk 0:00:31]} 59. Ke4 {[%clk 0:00:34]}  Re7+ {[%clk 0:00:30]} 60. Kf4 {[%clk 0:00:34]}  Kg2 {[%clk 0:00:28]} 61. Kg4 {[%clk 0:00:30]}  f2 {[%clk 0:00:29]} 62. Ra3 {[%clk 0:00:29]}  f1=Q {[%clk 0:00:26]} 63. Rg3+ {[%clk 0:00:28]}  Kh2 {[%clk 0:00:27]} 64. Kh4 {[%clk 0:00:25]}  Rh7+ {[%clk 0:00:26]} 65. Kg5 {[%clk 0:00:24]}  Kxg3 {[%clk 0:00:25]} 0-1


[Site "https://www.chess.com"]

[Event "Titled Tuesday Blitz November 22 Early 2022"]
[White "Stankovic, Ivan G"]
[Black "Spalir, Monika"]
[WhiteFideId "902837"]
[BlackFideId "14609118"]
[WhiteElo "2226"]
[BlackElo "2032"]
[Result "1-0"]
[Round "05"]
[TimeControl "180+1"]
[Date "2022.11.23"]
[WhiteClock "0:01:02"]
[BlackClock "0:00:01"]

1. e4 {[%clk 0:03:00]}  c5 {[%clk 0:02:59]} 2. c4 {[%clk 0:03:00]}  Nc6 {[%clk 0:02:55]} 3. Nc3 {[%clk 0:03:01]}  g6 {[%clk 0:02:53]} 4. g3 {[%clk 0:03:02]}  Bg7 {[%clk 0:02:54]} 5. Bg2 {[%clk 0:03:03]}  d6 {[%clk 0:02:54]} 6. Nge2 {[%clk 0:03:04]}  e6 {[%clk 0:02:50]} 7. d3 {[%clk 0:03:04]}  Nge7 {[%clk 0:02:50]} 8. Be3 {[%clk 0:03:04]}  O-O {[%clk 0:02:44]} 9. d4 {[%clk 0:03:04]}  cxd4 {[%clk 0:02:36]} 10. Nxd4 {[%clk 0:03:05]}  Nxd4 {[%clk 0:02:13]} 11. Bxd4 {[%clk 0:03:06]}  e5 {[%clk 0:02:13]} 12. Be3 {[%clk 0:03:04]}  Nc6 {[%clk 0:02:05]} 13. O-O {[%clk 0:03:03]}  Be6 {[%clk 0:02:03]} 14. b3 {[%clk 0:03:03]}  Rc8 {[%clk 0:01:53]} 15. Qd2 {[%clk 0:03:03]}  f5 {[%clk 0:01:38]} 16. Rad1 {[%clk 0:02:59]}  Qe8 {[%clk 0:01:23]} 17. exf5 {[%clk 0:02:50]}  gxf5 {[%clk 0:01:21]} 18. Nb5 {[%clk 0:02:44]}  Qh5 {[%clk 0:01:09]} 19. f4 {[%clk 0:02:07]}  e4 {[%clk 0:01:08]} 20. Nxd6 {[%clk 0:02:05]}  Rcd8 {[%clk 0:01:06]} 21. c5 {[%clk 0:02:05]}  Rf6 {[%clk 0:00:49]} 22. Qc1 {[%clk 0:01:55]}  Rh6 {[%clk 0:00:44]} 23. h3 {[%clk 0:01:53]}  Rg6 {[%clk 0:00:38]} 24. Kh2 {[%clk 0:01:48]}  Nb4 {[%clk 0:00:30]} 25. Nxb7 {[%clk 0:01:39]}  Rxd1 {[%clk 0:00:22]} 26. Qxd1 {[%clk 0:01:36]}  Qxd1 {[%clk 0:00:20]} 27. Rxd1 {[%clk 0:01:37]}  Nd3 {[%clk 0:00:21]} 28. Bf1 {[%clk 0:01:33]}  Bd5 {[%clk 0:00:18]} 29. Nd6 {[%clk 0:01:30]}  h5 {[%clk 0:00:09]} 30. Bxd3 {[%clk 0:01:30]}  exd3 {[%clk 0:00:09]} 31. Rxd3 {[%clk 0:01:30]}  Bc6 {[%clk 0:00:09]} 32. Nxf5 {[%clk 0:01:29]}  Bf6 {[%clk 0:00:06]} 33. Rd6 {[%clk 0:01:26]}  Be4 {[%clk 0:00:03]} 34. Nh4 {[%clk 0:01:26]}  Bxh4 {[%clk 0:00:03]} 35. Rxg6+ {[%clk 0:01:25]}  Bxg6 {[%clk 0:00:04]} 36. gxh4 {[%clk 0:01:25]}  Kf7 {[%clk 0:00:04]} 37. Kg3 {[%clk 0:01:13]}  Ke7 {[%clk 0:00:03]} 38. Kf3 {[%clk 0:01:06]}  Kd7 {[%clk 0:00:02]} 39. Bd4 {[%clk 0:01:06]}  Bf5 {[%clk 0:00:02]} 40. Ke3 {[%clk 0:01:05]}  Bxh3 {[%clk 0:00:02]} 41. Ke4 {[%clk 0:01:06]}  Ke6 {[%clk 0:00:02]} 42. Bf2 {[%clk 0:01:03]}  Bf5+ {[%clk 0:00:02]} 43. Kd4 {[%clk 0:01:03]}  Bg4 {[%clk 0:00:02]} 44. b4 {[%clk 0:01:03]}  a6 {[%clk 0:00:01]} 45. a4 {[%clk 0:01:03]}  Bf5 {[%clk 0:00:02]} 46. b5 {[%clk 0:01:03]}  axb5 {[%clk 0:00:02]} 47. axb5 {[%clk 0:01:04]}  Kd7 {[%clk 0:00:02]} 48. c6+ {[%clk 0:01:03]}  Kc7 {[%clk 0:00:02]} 49. Kc5 {[%clk 0:01:02]}  Be4 {[%clk 0:00:01]} 50. Bd4 {[%clk 0:01:02]}  Bf3 {[%clk 0:00:01]} 51. Be5+ {[%clk 0:01:01]}  Kc8 {[%clk 0:00:01]} 52. b6 {[%clk 0:01:02]} 1-0


[Site "https://www.chess.com"]

[Event "Titled Tuesday Blitz November 22 Early 2022"]
[White "Streltsov, Alexey"]
[Black "Ansh M Shah"]
[WhiteFideId "24104434"]
[BlackFideId "25033379"]
[WhiteElo "2548"]
[BlackElo "2084"]
[Result "0-1"]
[Round "05"]
[TimeControl "180+1"]
[Date "2022.11.23"]
[WhiteClock "0:00:20"]
[BlackClock "0:00:14"]

1. d4 {[%clk 0:03:00]}  Nf6 {[%clk 0:03:00]} 2. Nc3 {[%clk 0:03:01]}  e6 {[%clk 0:03:01]} 3. e4 {[%clk 0:03:00]}  d5 {[%clk 0:03:01]} 4. e5 {[%clk 0:03:01]}  Nfd7 {[%clk 0:03:02]} 5. f4 {[%clk 0:03:02]}  c5 {[%clk 0:03:02]} 6. Nf3 {[%clk 0:03:02]}  Nc6 {[%clk 0:03:03]} 7. Be3 {[%clk 0:03:03]}  a6 {[%clk 0:03:02]} 8. Ne2 {[%clk 0:03:00]}  b5 {[%clk 0:03:03]} 9. c3 {[%clk 0:02:59]}  Be7 {[%clk 0:03:00]} 10. g4 {[%clk 0:02:58]}  b4 {[%clk 0:02:53]} 11. f5 {[%clk 0:02:56]}  bxc3 {[%clk 0:02:52]} 12. bxc3 {[%clk 0:02:56]}  cxd4 {[%clk 0:02:52]} 13. cxd4 {[%clk 0:02:56]}  O-O {[%clk 0:02:37]} 14. h4 {[%clk 0:02:46]}  Nb6 {[%clk 0:02:31]} 15. f6 {[%clk 0:02:34]}  gxf6 {[%clk 0:02:30]} 16. Bh6 {[%clk 0:02:34]}  fxe5 {[%clk 0:02:13]} 17. Bxf8 {[%clk 0:02:33]}  Qxf8 {[%clk 0:02:13]} 18. dxe5 {[%clk 0:02:30]}  Nc4 {[%clk 0:02:14]} 19. Nf4 {[%clk 0:01:41]}  Bb4+ {[%clk 0:02:01]} 20. Kf2 {[%clk 0:01:40]}  N6xe5 {[%clk 0:01:47]} 21. Bxc4 {[%clk 0:01:17]}  Nxc4 {[%clk 0:01:42]} 22. Qd3 {[%clk 0:01:03]}  Bc5+ {[%clk 0:01:26]} 23. Kg2 {[%clk 0:00:49]}  Ne3+ {[%clk 0:01:14]} 24. Kh3 {[%clk 0:00:49]}  e5 {[%clk 0:01:13]} 25. Nxe5 {[%clk 0:00:46]}  Qg7 {[%clk 0:01:06]} 26. Qc3 {[%clk 0:00:27]}  Nxg4 {[%clk 0:00:41]} 27. Nh5 {[%clk 0:00:28]}  Ne3+ {[%clk 0:00:14]} 28. Kh2 {[%clk 0:00:20]}  Qg2# {[%clk 0:00:14]} 0-1


[Site "https://www.chess.com"]